Workbook

Sheet INICIO
C7: Recomendaciones
C8: 1.En cada hoja las celdas que se encuentran en verde requieren información.
C9: 2.Cada hoja cuenta con comentarios en las celdas que requieren información.
C10: 3.Los datos de consulta que se requieren, se deben tomar del año o mes en el que ocurre el incendio forestal.
C11: 4.Los porcentajes se deben ingresar en la fracción correspondiente, es decir si es 100% ingresar el numero 1.
C12: 5.Para determinar el VUI de sumidero de carbono es necesario primero completar la información de biomasa.
C13: 6.Para el VUI de salud en afectación indirecta, será necesario completar la información de población afectada.
C14: 7.Para el VNU-existencia de las coberturas, será necesario, posterior a obtener la información requerida para el componente de conservación, completar los datos de la hoja de flujo económico y así obtener el valor final.
A16: CONTENIDO

Sheet VUD-Madera
A1: SECRETARIA DISTRITAL DE AMBIENTE SDA
A2: METODOLOGÍA DE VALORACIÓN ECONÓMICA Y AMBIENTAL DE DAÑOS OCASIONADOS POR INCENDIOS FORESTALES PARA LA RESTAURACIÓN
A3: VALOR DE USO DIRECTO DE LA MADERA
C5: Valor de uso directo de la madera | D5: =G28 -> 0 | F5: Cobertura
F6: A
C7: Precio actualizado madera dura | F7: B
C8: Precio actualizado madera liviana | F8: C
F9: D
C10: Volumen comercial
C11: Nombre científico | D11: Densidad básica Tn /m3 | E11: Volumen perdido m3 | F11: Precio m3 mercado | G11: Costo
A12: Sp1 | C12: =C32 -> 0 | E12: =I32+I41+I50+I59 -> 0 | F12: =IF(D12>0.5,$D$7,$D$8) -> 0 | G12: =E12*F12 -> 0
A13: Sp2 | C13: 0 | E13: =I33+I42+I51+I60 -> 0 | F13: 0 | G13: =E13*F13 -> 0
A14: Sp3 | C14: 0 | E14: =I34+I43+I52+I61 -> 0 | F14: 0 | G14: 0
A15: Sp4 | C15: 0 | E15: =I35+I44+I53+I62 -> 0 | F15: 0 | G15: 0
A16: A | B16: 1 | C16: 0 | E16: =I36 -> 0 | F16: 0 | G16: 0
B17: 2 | C17: 0 | E17: =I37 -> 0 | F17: 0 | G17: 0
B18: 3 | C18: 0 | E18: =I38 -> 0 | F18: 0 | G18: 0
A19: B | B19: 1 | C19: =C45 -> 0 | E19: =I45 -> 0 | F19: 0 | G19: 0
B20: 2 | C20: =C46 -> 0 | E20: =I46 -> 0 | F20: 0 | G20: 0
B21: 3 | C21: =C47 -> 0 | E21: =I47 -> 0 | F21: 0 | G21: 0
A22: C | B22: 1 | C22: =C54 -> 0 | E22: =I54 -> 0 | F22: 0 | G22: 0
B23: 2 | C23: =C55 -> 0 | E23: =I55 -> 0 | F23: 0 | G23: 0
B24: 3 | C24: =C56 -> 0 | E24: =I56 -> 0 | F24: 0 | G24: 0
A25: D | B25: 1 | C25: =C63 -> 0 | E25: =I63 -> 0 | F25: 0 | G25: 0
B26: 2 | C26: =C64 -> 0 | E26: =I64 -> 0 | F26: 0 | G26: 0
B27: 3 | C27: =C65 -> 0 | E27: =I65 -> 0 | F27: 0 | G27: 0
A28: Total Valor de uso directo de la madera | G28: =ROUND(SUM(G12:G27),0) -> 0
A30: Cobertura A (Resultado del inventario)
A31: Nombre científico | D31: Volumen área testigo m3/ha | E31: Volumen residual A. Media m3/ha | F31: Área afectación media (ha) | G31: Volumen residual A. Alta m3/ha | H31: Área afectación alta (ha) | I31: Total
A32: Sp1 | I32: =((D32-E32)*$F$32)+((D32-G32)*$H$32) -> 0
A33: Sp2 | I33: 0
A34: Sp3 | I34: 0
A35: Sp4 | I35: 0
A36: 1 | I36: 0
A37: 2 | I37: 0
A38: 3 | I38: 0
A39: Cobertura B (Resultado del inventario)
A40: Nombre científico | D40: Volumen área testigo m3/ha | E40: Volumen residual A.media m3/ha | F40: Área afectación media (ha) | G40: Volumen residual A.alta m3/ha | H40: Área afectación alta (ha) | I40: Total
A41: Sp1 | C41: =C32 -> 0 | I41: =((D41-E41)*$F$41)+((D41-G41)*$H$41) -> 0
A42: Sp2 | C42: =C33 -> 0 | I42: =((D42-E42)*$F$41)+((D42-G42)*$H$41) -> 0
A43: Sp3 | C43: =C34 -> 0 | I43: =((D43-E43)*F41)+((D43-G43)*H41) -> 0
A44: Sp4 | C44: =C35 -> 0 | I44: =((D44-E44)*F41)+((D44-G44)*H41) -> 0
A45: 1 | I45: =((D45-E45)*F41)+((D45-G45)*H41) -> 0
A46: 2 | I46: =((D46-E46)*F41)+((D46-G46)*H41) -> 0
A47: 3 | I47: =((D47-E47)*F41)+((D47-G47)*H41) -> 0
A48: Cobertura C (Resultado del inventario)
A49: Nombre científico | D49: Volumen área testigo m3/ha | E49: Volumen residual A.media m3/ha | F49: Área afectación media (ha) | G49: Volumen residual A.alta m3/ha | H49: Área afectación alta (ha) | I49: Total
A50: Sp1 | C50: =C32 -> 0 | I50: =((D50-E50)*$F$50)+((D50-G50)*$H$50) -> 0
A51: Sp2 | C51: =C33 -> 0 | I51: 0
A52: Sp3 | C52: =C34 -> 0 | I52: 0
A53: Sp4 | C53: =C35 -> 0 | I53: 0
A54: 1 | I54: 0
A55: 2 | I55: 0
A56: 3 | I56: 0
A57: Cobertura D (Resultado del inventario)
A58: Nombre científico | D58: Volumen área testigo m3/ha | E58: Volumen residual A.media m3/ha | F58: Área afectación media (ha) | G58: Volumen residual A.alta m3/ha | H58: Área afectación alta (ha) | I58: Total
A59: Sp1 | C59: =C32 -> 0 | I59: =((D59-E59)*$F$59)+((D59-G59)*$H$59) -> 0
A60: Sp2 | C60: =C33 -> 0 | I60: 0
A61: Sp3 | C61: =C34 -> 0 | I61: 0
A62: Sp4 | C62: =C35 -> 0 | I62: 0
A63: 1 | I63: 0
A64: 2 | I64: 0
A65: 3 | I65: 0

Sheet VUD-Infraestructura
A1: SECRETARIA DISTRITAL DE AMBIENTE SDA
A2: METODOLOGÍA DE VALORACIÓN ECONÓMICA Y AMBIENTAL DE DAÑOS OCASIONADOS POR INCENDIOS FORESTALES PARA LA RESTAURACIÓN
A3: INFRAESTRUCTURA
A4: Valor de uso directo de infraestructura | C4: =ROUND(E48+I8+I27,0) -> 0
A6: Perdida directa de uso | F6: Perdida indirecta de uso
A7: Tipo de estructura | B7: Cuantificación de la medida | C7: Unidad de medida | D7: Precio de mercado por unidad de medida | E7: Total | F7: Cantidad de Empleos | G7: Salario SMDLV | H7: Días de suspensión | I7: Total
E8: =B8*D8 -> 0 | I8: =F8*G8*H8 -> 0
E9: 0 | F9: Tipo de Infraestructura | G9: Costo arriendo (días) | H9: Días inhabilitados de uso | I9: Total
E10: 0 | I10: =G10*H10 -> 0
E11: 0 | I11: =G11*H11 -> 0
E12: 0 | I12: 0
E13: 0 | I13: 0
E14: 0 | I14: 0
E15: 0 | I15: 0
E16: 0 | I16: 0
E17: 0 | F17: Servicio | G17: Costo de reconexion | H17: Costo de rehabilitatación de la infraestructura | I17: Total
E18: 0 | F18: Agua | I18: =G18+H18 -> 0
E19: 0 | F19: Gas | I19: =G19+H19 -> 0
E20: 0 | F20: Luz | I20: 0
E21: 0 | F21: Electricidad | I21: 0
E22: 0 | F22: Internet | I22: 0
E23: 0 | I23: 0
E24: 0 | I24: 0
E25: 0 | I25: 0
E26: 0 | I26: 0
E27: 0 | F27: Total | I27: =ROUND(SUM(I10:I16,I18:I26),0) -> 0
E28: 0
E29: 0
E30: 0
E31: 0
E32: 0
E33: 0
E34: 0
E35: 0
E36: 0
E37: 0
E38: 0
E39: 0
E40: 0
E41: 0
E42: 0
E43: 0
E44: 0
E45: 0
E46: 0
E47: 0
A48: Total | E48: =ROUND(SUM(E8:E47),0) -> 0
A49: Fuente: | B49: Precios IDU

Sheet VUD-Suelo Productivo
B1: SECRETARIA DISTRITAL DE AMBIENTE SDA
B2: METODOLOGÍA DE VALORACIÓN ECONÓMICA Y AMBIENTAL DE DAÑOS OCASIONADOS POR INCENDIOS FORESTALES PARA LA RESTAURACIÓN
B3: SUELO PRODUCTIVO
B5: valor de uso directo de suelo productivo | C5: =K32 -> 0
B6: SMLV
B7: Producción | C7: Rendimiento (t-lt)/ha/año | D7: Área afectada (ha) | E7: Precio de mercado (tn) | F7: Perdida de producción | G7: Empleos generados por ha | H7: SMLV | I7: Perdida de empleo | J7: Tiempo de recuperación del suelo (años) | K7: Tiempo de recuperación de la porductividad (años) | L7: Perdida de empleo | M7: Costos de establecimiento (ha) | N7: Costos de producción (ha)
A8: Cultivos transitorios | F8: =C8*D8*E8 -> 0 | H8: =$C$6*12 -> 0 | I8: =G8*H8 -> 0 | L8: =G8*H8*J8 -> 0
F9: =C9*D9*E9 -> 0 | H9: 0 | I9: =G9*H9 -> 0 | L9: 0
F10: 0 | H10: 0 | I10: 0 | L10: 0
H11: 0 | I11: 0 | L11: 0
F12: 0 | H12: 0 | I12: 0 | L12: 0
A13: Cultivos permanentes | F13: 0 | H13: 0 | I13: 0 | L13: 0
F14: 0 | H14: 0 | I14: 0 | L14: 0
F15: 0 | H15: 0 | I15: 0 | L15: 0
F16: 0 | H16: 0 | I16: 0 | L16: 0
F17: 0 | H17: 0 | I17: 0 | L17: 0
C20: Tiempo (años )
B21: Producción | C21: 0 | D21: 1 | E21: 2 | F21: 3 | G21: 4 | H21: 5 | I21: 6 | J21: 7 | K21: VPN
A22: Cultivos transitorios | B22: =B8 -> 0 | C22: =N8 -> 0 | D22: =F8 -> 0 | K22: =NPV(8.5%,D22:J22)+C22 -> 0
B23: =B9 -> 0 | C23: =N9 -> 0 | D23: =F9 -> 0 | K23: 0
B24: =B10 -> 0 | C24: =N10 -> 0 | D24: =F10 -> 0 | K24: 0
B25: =B11 -> 0 | C25: =N11 -> 0 | D25: =F11 -> 0 | K25: 0
B26: 0 | C26: 0 | D26: 0 | K26: 0
A27: Cultivos permanentes | B27: 0 | C27: =M13 -> 0 | D27: =F13+I13 -> 0 | K27: 0
B28: 0 | C28: =M14 -> 0 | D28: =F14+I14 -> 0 | K28: 0
B29: 0 | C29: 0 | D29: 0 | K29: 0
B30: 0 | C30: 0 | D30: 0 | K30: 0
B31: 0 | C31: 0 | D31: 0 | K31: 0
B32: Total valor presente neto perdida de suelo productivo | K32: =ROUND(SUM(K22:K31),0) -> 0

Sheet VUD-Recreación
A1: SECRETARIA DISTRITAL DE AMBIENTE SDA
A2: METODOLOGÍA DE VALORACIÓN ECONÓMICA Y AMBIENTAL DE DAÑOS OCASIONADOS POR INCENDIOS FORESTALES PARA LA RESTAURACIÓN
A3: RECREACIÓN
A5: Valor de uso directo de recreación | B5: =C22 -> 0
A6: SMLV MENSUAL | C6: 0
A7: SMMLV DIARIO | C7: =C6/30 -> 0
A8: RECARGO DOMINICAL FESTIVO | C8: =0.25 -> 0.25
A9: TRANSPORTE | C9: =0.538 -> 0.538
A10: DISFRUTE (REFRIGERIO) | C10: =0.22 -> 0.22
A12: ESTIMACIÓN DEL VALOR DE USO DIRECTO DE LA RECREACIÓN
A13: Día SMLV | C13: =C7/8 -> 0
A14: Horas de Disfrute | C14: 0
A15: SMMLV 1 día + Recargo dominical y/o festivo | C15: =C8*C7 -> 0
A16: Horas de Desplazamiento | C16: 2.8
A17: Población adulta que visita el lugar | C17: 0
A18: Tiempo de cierre (días) | C18: 0
A19: Costos de Transporte | C19: =C9*C7 -> 0
A20: Costo de Disfrute | C20: =C10*C7 -> 0
A21: Población Total | C21: 0
A22: VALOR ECONÓMICO TOTAL DE USO DIRECTO DE RECREACIÓN | C22: =ROUND((((C13*C14)+(C15*C16))*C17*C18)+((C19+C20)*C21*C18),0) -> 0
A25: En caso de no encontrar discriminado entre la población adulta y niños, tomar una relación 1:1, es decir por cada adulto, 1 niño; resultando la mitad de la población encontrada como referente de adultos y la otra mitad como niños.

Sheet BIOMASA
A1: SECRETARIA DISTRITAL DE AMBIENTE SDA
A2: METODOLOGÍA DE VALORACIÓN ECONÓMICA Y AMBIENTAL DE DAÑOS OCASIONADOS POR INCENDIOS FORESTALES PARA LA RESTAURACIÓN
A3: BIOMASA
A8: Cobertura área afectada | B8: Tipo | C8: Area total afectacion alta y media (ha) | D8: Especies | E8: Volumen total perdido para afectacion alta y media (m3) | F8: Volumen ponderado para el area afectada (m3/ha) | G8: Densidad (t/m3) | H8: Biomasa (t/ha) | I8: Dm
B9: Arbustal denso mesófilo | C9: 2.607741 | D9: Ageratina asclepiadea | E9: 9.889609975 | F9: =E9/$C$75 -> 2.36804965 | G9: 0.4 | H9: =F9*G9 -> 0.9472198599 | I9: =(E9/$E$105)*G9 -> 0.02112407329
D10: Baccharis latifolia | E10: 1.320726953 | F10: 0.3162457372 | G10: 0.4 | H10: =F10*G10 -> 0.1264982949 | I10: 0.002821054927 | L10: Biomasa coberturas diferentes a pastos y herbazales
D11: Carex pichinchensis | E11: 0.006510811266 | F11: 0.001559002264 | G11: 0.4 | H11: 0.0006236009055 | I11: 1.39070049e-05
D12: Cavendishia bracteata | E12: 16.48848492 | F12: 3.948138606 | G12: 0.4 | H12: 1.579255442 | I12: 0.03521918101 | L12: Volumen total m3/ha | M12: =E105 -> 187.2671021
D13: Epidemdrum sp1 | E13: 0.0002516255562 | F13: 6.025129521e-05 | G13: 0.4 | H13: 2.410051809e-05 | I13: 5.374687883e-07 | L13: Dm Tn/m3 | M13: =I105 -> 0.4
D14: Espeletiopsis corymbosa | E14: 0.01849447838 | F14: 0.004428470198 | G14: 0.4 | H14: 0.001771388079 | I14: 3.950395594e-05 | L14: Factor de Expansión de Biomasa | M14: =IF(H105>190,1.74,(3.212-0.506*LN(H105))) -> 1.747983355
D15: Eucalyptus globulus | E15: 1.592204595 | F15: 0.3812505794 | G15: 0.4 | H15: 0.1525002318 | I15: 0.003400927503 | L15: Biomasa total Tn | M15: =M12*M13*M14 -> 130.935911
D16: Hesperomeles goudotiana | E16: 2.205082525 | F16: 0.5280031179 | G16: 0.4 | H16: 0.2112012471 | I16: 0.004710026481
D17: Miconia sp1 | E17: 4.275063193 | F17: 1.023656334 | G17: 0.4 | H17: 0.4094625338 | I17: 0.00913147722
D18: Miconia sp2 | E18: 5.740268273 | F18: 1.374497104 | G18: 0.4 | H18: =F18*G18 -> 0.5497988417 | I18: 0.01226113548 | L18: Biomasa Herbazal abierto y denso
D19: Oreopanax bogotensis | E19: 1.631425997 | F19: 0.3906420749 | G19: 0.4 | H19: =F19*G19 -> 0.15625683 | I19: 0.003484703888
D20: Paspalum quadrifarium | E20: 0.004812338762 | F20: 0.001152306021 | G20: 0.4 | H20: 0.0004609224084 | I20: 1.027909058e-05 | L20: Área ha | M20: 1.666172
D21: Pteridium arachnoideum | E21: 0.01609397057 | F21: 0.003853672842 | G21: 0.4 | H21: 0.001541469137 | I21: 3.43765037e-05 | L21: Área de borde ha | M21: 1.12
D22: Puya sp1 | E22: 0.02358989589 | F22: 0.005648558926 | G22: 0.4 | H22: 0.002259423571 | I22: 5.03876989e-05 | L22: Biomasa IDEAM (tan/ha) | M22: 28.2
D23: Palicourea lineariflora | E23: 0.9174531107 | F23: 0.2196825277 | G23: 0.4 | H23: 0.08787301109 | I23: 0.001959667449 | L23: Biomasa total Tn | M23: =M20*M22 -> 46.9860504
D24: Alnus acuminata | E24: 22.48200671 | F24: 5.383276817 | G24: 0.4 | H24: 2.153310727 | I24: 0.04802126258
D25: Monochaetum myrtoideum | E25: 0.0008215574409 | F25: 0.0001967204789 | G25: 0.4 | H25: 7.868819155e-05 | I25: 1.754835594e-06
D26: Varronia cylindrostachya | E26: 0.2803869424 | F26: 0.06713815838 | G26: 0.4 | H26: 0.02685526335 | I26: 0.0005989027207 | L26: Biomasa Pastizales
D27: Clusia multiflora | E27: 8.866714931 | F27: 2.123119237 | G27: 0.4 | H27: 0.8492476949 | I27: 0.0189391833 | L27: Área ha | M27: 1.303574
D28: Ugni myricoides | E28: 2.218108536 | F28: 0.5311221733 | G28: 0.4 | H28: 0.2124488693 | I28: 0.004737849865 | L28: Área de borde ha | M28: 1.21
D29: Epidendrum secundum | E29: 0.0001610403559 | F29: 3.856082894e-05 | G29: 0.4 | H29: 1.542433157e-05 | I29: 3.439800245e-07 | L29: Biomasa IDEAM (tan/ha) | M29: 12.7
D30: Stelis sp | E30: 0.004013427621 | F30: 0.0009610081587 | G30: 0.4 | H30: 0.0003844032635 | I30: 8.572627174e-06 | L30: Biomasa total Tn | M30: =SUM(M27:M28)*M29 -> 31.9223898
B31: Arbustal abierto mesófilo | C31: 1.508102 | D31: Achyrocline bogotensis | E31: 0.001164155503 | F31: 0.0002787549801 | G31: 0.4 | H31: 0.000111501992 | I31: 2.486620426e-06
D32: Ageratina asclepiadea | E32: 1.080827012 | F32: 0.25880212 | G32: 0.4 | H32: 0.103520848 | I32: 0.002308631895
D33: Baccharis latifolia | E33: 0.8987314326 | F33: 0.215199655 | G33: 0.4 | H33: 0.08607986198 | I33: 0.001919678198 | L33: BIOMASA TOTAL PERDIDA Tn | M33: =M15+M23+M30 -> 209.8443512
D34: Carex pichinchensis | E34: 0.09094964869 | F34: 0.02177773282 | G34: 0.4 | H34: =F34*G34 -> 0.008711093128 | I34: 0.0001942672208
D35: Hesperomeles goudotiana | E35: 0.729153909 | F35: 0.1745946163 | G35: 0.4 | H35: 0.06983784652 | I35: 0.001557462898
D36: Hypochaeris radicata | E36: 0.0004729381732 | F36: 0.0001132442107 | G36: 0.4 | H36: 4.529768426e-05 | I36: 1.010189548e-06
D37: Miconia sp1 | E37: 1.343178254 | F37: 0.3216216616 | G37: 0.4 | H37: 0.1286486646 | I37: 0.002869010602
D38: Pennisetum clandestinum | E38: 0.01844458875 | F38: 0.004416524216 | G38: 0.4 | H38: 0.001766609686 | I38: 3.939739238e-05
D39: Rubus acanthophyllos | E39: 0.2667582807 | F39: 0.0638747994 | G39: 0.4 | H39: 0.02554991976 | I39: 0.0005697920836
D40: Palicourea lineariflora | E40: 1.422774002 | F40: 0.340680723 | G40: 0.4 | H40: 0.1362722892 | I40: 0.003039026045
D41: Alnus acuminata | E41: 5.272152314 | F41: =E41/$C$75 -> 1.262407564 | G41: 0.4 | H41: 0.5049630258 | I41: =(E41/$E$105)*G41 -> 0.01126124611
D42: Monochaetum myrtoideum | E42: 0.5117222845 | F42: 0.1225309976 | G42: 0.4 | H42: 0.04901239906 | I42: 0.001093031886
D43: Miconia squamulosa | E43: 3.28332462 | F43: 0.7861862839 | G43: 0.4 | H43: 0.3144745136 | I43: 0.007013137028
D44: Varronia cylindrostachya | E44: 3.329262737 | F44: 0.7971860851 | G44: 0.4 | H44: 0.318874434 | I44: 0.007111260226
D45: Weinmannia tomentosa | E45: 0.5784905282 | F45: 0.1385185357 | G45: 0.4 | H45: 0.0554074143 | I45: 0.001235647952
D46: Drimys granadensis | E46: 0.7462101408 | F46: 0.1786787009 | G46: 0.4 | H46: 0.07147148036 | I46: 0.001593894779
D47: Macleania rupestris | E47: 0.003055908196 | F47: 0.0007317318227 | G47: 0.4 | H47: 0.0002926927291 | I47: 6.527378619e-06
B48: Mezcla de árboles plantados | C48: 0.000922 | D48: Ageratina asclepiadea | E48: 8.870679556e-05 | F48: 2.12406856e-05 | G48: 0.4 | H48: 8.49627424e-06 | I48: 1.894765168e-07
D49: Baccharis latifolia | E49: 2.668962479e-07 | F49: 6.390783539e-08 | G49: 0.4 | H49: =F49*G49 -> 2.556313416e-08 | I49: 5.700867795e-10
D50: Bryophita sp | E50: 6.405509949e-06 | F50: 1.533788049e-06 | G50: 0.4 | H50: 6.135152197e-07 | I50: 1.368208271e-08
D51: Epidemdrum sp1 | E51: 8.896541596e-07 | F51: 2.13026118e-07 | G51: 0.4 | H51: 8.521044718e-08 | I51: 1.900289265e-09
D52: Epidemdrum sp2 | E52: 1.779308319e-07 | F52: 4.260522359e-08 | G52: 0.4 | H52: 1.704208944e-08 | I52: 3.80057853e-10
D53: Eucalyptus globulus | E53: 0.001941032135 | F53: 0.0004647767181 | G53: 0.4 | H53: 0.0001859106873 | I53: 4.146018416e-06
D54: Miconia sp2 | E54: 0.0001348343293 | F54: 3.228584211e-05 | G54: 0.4 | H54: 1.291433684e-05 | I54: 2.880043056e-07
D55: Miconia sp3 | E55: 0.006951136914 | F55: 0.001664437463 | G55: 0.4 | H55: 0.0006657749851 | I55: 1.484753453e-05
D56: Pinus patula | E56: 0.07696410135 | F56: 0.0184289182 | G56: 0.4 | H56: 0.007371567279 | I56: 0.0001643942806
D57: Pteridium arachnoideum | E57: 8.896541596e-07 | F57: 2.13026118e-07 | G57: 0.4 | H57: 8.521044718e-08 | I57: 1.900289265e-09
D58: Palicourea lineariflora | E58: 2.802410603e-06 | F58: 6.710322716e-07 | G58: 0.4 | H58: 2.684129086e-07 | I58: 5.985911185e-09
D59: Monochaetum myrtoideum | E59: 1.844253073e-06 | F59: 4.416031425e-07 | G59: 0.4 | H59: 1.76641257e-07 | I59: 3.939299646e-09
D60: Miconia squamulosa | E60: 0.002372945161 | F60: 0.0005681975296 | G60: 0.4 | H60: 0.0002272790118 | I60: 5.068578803e-06
D61: Varronia cylindrostachya | E61: 0.002202125603 | F61: 0.0005272950882 | G61: 0.4 | H61: 0.0002109180353 | I61: 4.703710536e-06
D62: Diplostephium rosmarinifolium | E62: 1.494618988e-05 | F62: 3.578838782e-06 | G62: 0.4 | H62: 1.431535513e-06 | I62: 3.192485965e-08
D63: Puya sp2 | E63: 1.779308319e-07 | F63: 4.260522359e-08 | G63: 0.4 | H63: 1.704208944e-08 | I63: 3.80057853e-10
D64: Myrcianthes leucoxyla | E64: 0.001662190108 | F64: 0.0003980084869 | G64: 0.4 | H64: 0.0001592033948 | I64: 3.550415613e-06
B65: Vegetación secundaria baja | C65: 0.059503 | D65: Ageratina asclepiadea | E65: 0.02524705098 | F65: 0.006045361788 | G65: 0.4 | H65: =F65*G65 -> 0.002418144715 | I65: 5.39273598e-05
D66: Alnus acuminata | E66: 0.06891949717 | F66: 0.01650265193 | G66: 0.4 | H66: 0.006601060772 | I66: 0.0001472111148
D67: Baccharis latifolia | E67: 0.01928861722 | F67: 0.004618625342 | G67: 0.4 | H67: 0.001847450137 | I67: 4.120022578e-05
D68: Caesalpinia pluviosa | E68: 0.186859414 | F68: 0.04474315681 | G68: 0.4 | H68: 0.01789726272 | I68: 0.0003991291837
D69: Cavendishia bracteata | E69: 0.0478308506 | F69: 0.01145301274 | G69: 0.4 | H69: 0.004581205095 | I69: 0.0001021660506
D70: Diplostephium rosmarinifolium | E70: 0.01518346234 | F70: 0.003635653254 | G70: 0.4 | H70: 0.001454261302 | I70: 3.243167043e-05
D71: Escallonia discolor | E71: 0.006869831397 | F71: 0.001644969 | G71: 0.4 | H71: 0.0006579876001 | I71: 1.467386705e-05
D72: Macleania rupestris | E72: 6.88986006e-05 | F72: 1.649764828e-05 | G72: 0.4 | H72: 6.599059313e-06 | I72: 1.4716648e-07
D73: Palicourea lineariflora | E73: 0.01629019285 | F73: =E73/$C$75 -> 0.00390065792 | G73: 0.4 | H73: 0.001560263168 | I73: 3.479563184e-05
D74: Pennisetum clandestinum | E74: 0.0003100437027 | F74: 7.423941727e-05 | G74: 0.4 | H74: 2.969576691e-05 | I74: 6.6224916e-07
A75: Total | C75: =SUM(C9:C74) -> 4.176268 | E75: =SUM(E9:E74) -> 98.03817189 | F75: =SUM(F9:F74) -> 23.47506719 | G75: - | H75: =SUM(H9:H74) -> 9.390026874 | I75: =SUM(I9:I74) -> 0.2094082106
A76: C.Borde | B76: Arbustal denso mesófilo | C76: 2.85 | D76: Ageratina asclepiadea | E76: 2.237489412 | F76: =E76/$C$104 -> 0.5430799543 | G76: 0.4 | H76: =F76*G76 -> 0.2172319817 | I76: =(E76/$E$105)*G76 -> 0.004779247153
D77: Baccharis latifolia | E77: 3.287963382 | F77: 0.7980493646 | G77: 0.4 | H77: =F77*G77 -> 0.3192197459 | I77: =(E77/$E$105)*G77 -> 0.007023045362
D78: Cavendishia bracteata | E78: 0.9790694965 | F78: 0.2376382273 | G78: 0.4 | H78: 0.09505529092 | I78: =(E78/$E$105)*G78 -> 0.002091279217
D79: Miconia sp3 | E79: 37.46142837 | F79: 9.092579701 | G79: 0.4 | H79: 3.63703188 | I79: =(E79/$E$105)*G79 -> 0.08001710486
D80: Palicourea lineariflora | E80: 6.906312356 | F80: 1.676289407 | G80: 0.4 | H80: =F80*G80 -> 0.6705157627 | I80: =(E80/$E$105)*G80 -> 0.01475178988
D81: Alnus acuminata | E81: 5.64072961 | F81: 1.369109129 | G81: 0.4 | H81: 0.5476436514 | I81: 0.01204852224
D82: Miconia squamulosa | E82: 0.8190339393 | F82: 0.1987946455 | G82: 0.4 | H82: 0.07951785818 | I82: 0.001749445429
D83: Diplostephium rosmarinifolium | E83: 7.091202938 | F83: 1.721165762 | G83: 0.4 | H83: 0.6884663046 | I83: 0.01514671367
D84: Escallonia discolor | E84: 1.740567994 | F84: =E84/$C$104 -> 0.4224679597 | G84: 0.4 | H84: =F84*G84 -> 0.1689871839 | I84: =(E84/$E$105)*G84 -> 0.003717829718
D85: Caesalpinia pluviosa | E85: 6.245093496 | F85: 1.515799392 | G85: 0.4 | H85: 0.6063197569 | I85: =(E85/$E$105)*G85 -> 0.01333943533
B86: Arbustal abierto mesófilo | C86: 1.05 | D86: Ageratina asclepiadea | E86: 0.6664967354 | F86: 0.1617710523 | G86: 0.4 | H86: 0.06470842092 | I86: =(E86/$E$105)*G86 -> 0.001423628022
D87: Cavendishia bracteata | E87: 0.8741481559 | F87: 0.2121718825 | G87: 0.4 | H87: 0.084868753 | I87: =(E87/$E$105)*G87 -> 0.001867168651
D88: Ulex europaeus | E88: 0.59870902 | F88: 0.1453177233 | G88: 0.4 | H88: 0.05812708932 | I88: 0.001278834378
D89: Palicourea lineariflora | E89: 9.411085643 | F89: 2.284244088 | G89: 0.4 | H89: 0.9136976353 | I89: 0.02010195178
D90: Alnus acuminata | E90: 0.8780240958 | F90: 0.2131126446 | G90: 0.4 | H90: 0.08524505784 | I90: 0.001875447606
B91: Mezcla de árboles plantados | C91: 0.11 | D91: Ageratina asclepiadea | E91: 0.0153953748 | F91: 0.003736741456 | G91: 0.4 | H91: 0.001494696582 | I91: 3.288431257e-05
D92: Eucalyptus globulus | E92: 0.3182229155 | F92: 0.07723857171 | G92: 0.4 | H92: 0.03089542869 | I92: 0.000679719848
D93: Miconia sp3 | E93: 0.1157676893 | F93: 0.02809895371 | G93: 0.4 | H93: 0.01123958148 | I93: 0.0002472782202
D94: Pinus patula | E94: 3.56495368 | F94: 0.8652800193 | G94: 0.4 | H94: 0.3461120077 | I94: =(E94/$E$105)*G94 -> 0.007614692894
D95: Monochaetum myrtoideum | E95: 0.0007775441818 | F95: 0.000188724316 | G95: 0.4 | H95: 7.548972638e-05 | I95: 1.660823867e-06
D96: Miconia squamulosa | E96: 0.02419026343 | F96: 0.005871423163 | G96: 0.4 | H96: 0.002348569265 | I96: 5.167007586e-05
B97: Vegetación secundaria baja | C97: 0.11 | D97: Ageratina asclepiadea | E97: 0.01523986596 | F97: =E97/$C$104 -> 0.003698996593 | G97: 0.4 | H97: =F97*G97 -> 0.001479598637 | I97: 3.255214779e-05
D98: Alnus acuminata | E98: 0.04537039416 | F98: 0.01101223159 | G98: 0.4 | H98: =F98*G98 -> 0.004404892637 | I98: 9.691054893e-05
D99: Baccharis latifolia | E99: 0.01772800734 | F99: 0.004302914404 | G99: 0.4 | H99: 0.001721165762 | I99: 3.786678417e-05
D100: Caesalpinia pluviosa | E100: 0.1119663622 | F100: 0.0271763015 | G100: 0.4 | H100: 0.0108705206 | I100: 0.0002391586369
D101: Cavendishia bracteata | E101: 0.04063964257 | F101: 0.009863990914 | G101: 0.4 | H101: 0.003945596366 | I101: 8.680572745e-05
D102: Diplostephium rosmarinifolium | E102: 0.04204958935 | F102: 0.01020621101 | G102: 0.4 | H102: 0.004082484403 | I102: 8.981735473e-05
D103: Varronia cylindrostachya | E103: 0.07927425787 | F103: 0.01924132473 | G103: 0.4 | H103: 0.00769652989 | I103: 0.0001693287438
A104: Total | C104: =SUM(C76:C103) -> 4.12 | D104: =SUM(D76:D96) -> 0 | E104: =SUM(E76:E103) -> 89.22893023 | F104: =SUM(F76:F103) -> 21.65750734 | G104: - | H104: =SUM(H76:H103) -> 8.663002935 | I104: =SUM(I76:I103) -> 0.1905917894
A105: Total | C105: =C75+C104 -> 8.296268 | E105: =E75+E104 -> 187.2671021 | F105: =F75+F104 -> 45.13257452 | G105: - | H105: =H75+H104 -> 18.05302981 | I105: =I75+I104 -> 0.4

Sheet VUI-Sumidero de carbono
B1: SECRETARIA DISTRITAL DE AMBIENTE SDA
B2: METODOLOGÍA DE VALORACIÓN ECONÓMICA Y AMBIENTAL DE DAÑOS OCASIONADOS POR INCENDIOS FORESTALES PARA LA RESTAURACIÓN
B3: SUMIDERO DE CARBONO
B5: Valor de uso indirecto de sumidero de carbono | C5: =C13 -> 108770883
B7: Sumidero de carbono
B8: Biomasa total | C8: =BIOMASA!M33 -> 209.8443512
B9: Carbono contenido (factor) | C9: =0.51 -> 0.51
B10: Carbono equivalente (factor) | C10: =3.67 -> 3.67
B11: Precio en el mercado € | C11: 65.09
B12: Tasa de cambio € a $ | C12: 4254.66
B13: Valor uso indirecto sumidero de carbono | C13: =ROUND(C8*C9*C10*C12*C11,0) -> 108770883
B14: Fuente de precios | C14: Sendeco2

Sheet VUI Soporte y Regulación
A1: SECRETARIA DISTRITAL DE AMBIENTE SDA
A2: METODOLOGÍA DE VALORACIÓN ECONÓMICA Y AMBIENTAL DE DAÑOS OCASIONADOS POR INCENDIOS FORESTALES
A3: SOPORTE Y REGULACIÓN
A6: Valor de uso indirecto de soporte y regulación | B6: =H32+O52 -> 3713719758
A8: SMMLV | B8: 1300000
A10: REGULACIÓN | K10: SOPORTE
A11: Coberturas | B11: Rendimientos | D11: Afectación | E11: Años recuperación | F11: Área (ha) | G11: $/m3 | H11: Costo | K11: Grupo agrologico-Grupo cobertura | L11: Área (ha) | M11: Recomendaciones | N11: Costos tratamientos (Ha) | O11: Costo total remediación
B12: Estudio (lt/s/Km2) | C12: m3 /año/ha | K12: 1A | M12: 3,4,5,6,7,8 | N12: 12519304.9 | O12: =L12*N12 -> 0
A13: Eucalipto y latifoliadas | B13: 21 | C13: =(B13*0.001*86400*365)/100 -> 6622.56 | D13: Alta | E13: 10 | H13: ='Flujo E.Regulacion '!M25 -> 0 | K13: 1B | M13: 3,4,5,6,7,8 | N13: 12519304.9 | O13: 0
D14: Media | E14: 7.5 | H14: ='Flujo E.Regulacion '!M26 -> 0 | K14: 1C | M14: 3,4,5,6,7,8 | N14: 12519304.9 | O14: 0
D15: Baja | E15: 2 | F15: 0.000922 | H15: ='Flujo E.Regulacion '!M27 -> 54150.42857 | K15: 1D | M15: 3,4,5,6,7,8 | N15: 12519304.9 | O15: 0
A16: Eucalipto y latifoliadas Borde | D16: Alta | E16: 10 | H16: ='Flujo E.Regulacion '!M28 -> 0 | K16: 1E | M16: 3,4,5,6,7,8 | N16: 12519304.9 | O16: 0
D17: Media | E17: 7.5 | H17: ='Flujo E.Regulacion '!M29 -> 0 | K17: 1F | M17: 3,4,5,6,7 | N17: 8924705 | O17: 0
A18: Pino y Ciprés | B18: 29 | C18: =(B18*0.001*86400*365)/100 -> 9145.44 | D18: Alta | E18: 10 | H18: ='Flujo E.Regulacion '!M30 -> 0 | K18: 1G | M18: 4,5,6,7 | N18: 7588277 | O18: 0
D19: Media | E19: 7.5 | H19: ='Flujo E.Regulacion '!M31 -> 0 | K19: 1H | M19: 4,5,6,7 | N19: 7588277 | O19: 0
D20: Baja | E20: 2 | H20: ='Flujo E.Regulacion '!M32 -> 0 | K20: 2A | M20: 3,4,5,6,7,8 | N20: 12519304.9 | O20: 0
A21: Pino y Ciprés Borde | D21: Alta | E21: 10 | H21: ='Flujo E.Regulacion '!M33 -> 0 | K21: 2B | M21: 3,4,5,6,7,8 | N21: 12519304.9 | O21: 0
D22: Media | E22: 7.5 | H22: ='Flujo E.Regulacion '!M34 -> 0 | K22: 2C | M22: 3,4,5,6,7,8 | N22: 12519304.9 | O22: 0
A23: Bosques natural /arbustales | B23: 34 | C23: =(B23*0.001*86400*365)/100 -> 10722.24 | D23: Alta | E23: 10 | F23: 4.175346 | H23: ='Flujo E.Regulacion '!M35 -> 1470863987 | K23: 2D | M23: 3,4,5,6,7,8 | N23: 12519304.9 | O23: 0
D24: Media | E24: 7.5 | G24: =(0.355/100)*B8 -> 4615 | H24: ='Flujo E.Regulacion '!M36 -> 0 | K24: 2E | M24: 3,4,5,6,7,8 | N24: 12519304.9 | O24: 0
D25: Baja | E25: 2 | H25: ='Flujo E.Regulacion '!M37 -> 0 | K25: 2F | M25: 3,4,5,6,7 | N25: 8924705 | O25: 0
A26: Arbustales borde | D26: Alta | E26: 10 | F26: 4.01 | H26: ='Flujo E.Regulacion '!M38 -> 1412616963 | K26: 2G | M26: 4,5,6,7 | N26: 7588277 | O26: 0
D27: Media | E27: 7.5 | H27: ='Flujo E.Regulacion '!M39 -> 0 | K27: 2H | M27: 4,5,6,7 | N27: 7588277 | O27: 0
A28: Páramo/herbazales | B28: 39 | C28: =(B28*0.001*86400*365)/100 -> 12299.04 | D28: Alta | E28: 5 | F28: 1.666172 | H28: ='Flujo E.Regulacion '!M40 -> 404351893.7 | K28: 3A | M28: 3,4,5,6,7,8 | N28: 12519304.9 | O28: 0
A29: Páramo/herbazales borde | D29: Alta | E29: 5 | F29: 1.12 | H29: ='Flujo E.Regulacion '!M41 -> 271805143.6 | K29: 3B | M29: 3,4,5,6,7,8 | N29: 12519304.9 | O29: 0
A30: Pastos | B30: 7.6 | C30: =(B30*0.001*86400*365)/100 -> 2396.736 | D30: Alta | E30: 2 | F30: 1.639508 | H30: ='Flujo E.Regulacion '!M42 -> 34848313.35 | K30: 3C | M30: 3,4,5,6,7,8 | N30: 12519304.9 | O30: 0
A31: Pastos Borde | D31: Alta | E31: 2 | F31: 1.2 | H31: ='Flujo E.Regulacion '!M43 -> 25506418.01 | K31: 3D | M31: 3,4,5,6,7,8 | N31: 12519304.9 | O31: 0
A32: Costo total | H32: =ROUND(SUM(H13:H30),0) -> 3594540451 | K32: 3E | M32: 3,4,5,6,7,8 | N32: 12519304.9 | O32: 0
K33: 3F | M33: 3,4,5,6,7 | N33: 8924705 | O33: 0
K34: 3G | M34: 6.7 | N34: 5265924 | O34: 0
K35: 3H | M35: 6.7 | N35: 5265924 | O35: 0
K36: 4A | M36: 1,2,3,6,7,8 | N36: 19223951.9 | O36: =L36*N36 -> 0
K37: 4B | M37: 1,2,3,6,7,8 | N37: 19223951.9 | O37: 0
K38: 4C | M38: 1,2,3,6,7,8 | N38: 19223951.9 | O38: 0
K39: 4D | M39: 1,2,3,6,7,8 | N39: 19223951.9 | O39: 0
K40: 4E | M40: 1,2,3,6,7,8 | N40: 19223951.9 | O40: 0
K41: 4F | M41: 1,2,3,6,7,8 | N41: 19223951.9 | O41: 0
K42: 4G | M42: 6.7 | N42: 5265924 | O42: 0
K43: 4H | M43: 6.7 | N43: 5265924 | O43: 0
K44: 5A | M44: 1,2,3,6,7,8 | N44: 19223951.9 | O44: 0
K45: 5B | L45: 4.115843 | M45: 1,2,3,6,7,8 | N45: 19223951.9 | O45: 79122767.86
K46: 5C | L46: 0.059503 | M46: 1,2,3,6,7,8 | N46: 19223951.9 | O46: 1143882.81
K47: 5D | L47: 0.000922 | M47: 1,2,3,6,7,8 | N47: 19223951.9 | O47: 17724.48365
K48: 5E | M48: 1,2,3,6,7,8 | N48: 19223951.9 | O48: 0
K49: 5F | L49: 1.666172 | M49: 1,2,3,6,7,8 | N49: 19223951.9 | O49: 32030410.39
K50: 5G | L50: 1.303574 | M50: 6.7 | N50: 5265924 | O50: 6864521.612
K51: 5H | M51: 6.7 | N51: 5265924 | O51: 0
K52: Total costos remediación | O52: =ROUND(SUM(O12:O51),0) -> 119179307

Sheet Flujo E.Regulacion
A1: Coberturas | B1: Rendimientos | D1: Afectación | E1: Años recuperación | F1: Área (ha) | G1: $/m3
B2: Estudio (lt/s/Km2) | C2: m3 /año/ha
A3: Eucalipto y latifoliadas | B3: 21 | C3: =(B3*0.001*86400*365)/100 -> 6622.56 | D3: Alta | E3: 10 | F3: ='VUI Soporte y Regulación '!F13 -> 0 | G3: ='VUI Soporte y Regulación '!G24 -> 4615
D4: Media | E4: 7.5 | F4: ='VUI Soporte y Regulación '!F14 -> 0
D5: Baja | E5: 2 | F5: ='VUI Soporte y Regulación '!F15 -> 0.000922
A6: Eucalipto y latifoliadas Borde | B6: 21 | C6: =(B3*0.001*86400*365)/100 -> 6622.56 | D6: Alta | E6: 10 | F6: ='VUI Soporte y Regulación '!F16 -> 0
D7: Media | E7: 7.5 | F7: ='VUI Soporte y Regulación '!F17 -> 0
A8: Pino y Ciprés | B8: 29 | C8: =(B8*0.001*86400*365)/100 -> 9145.44 | D8: Alta | E8: 10 | F8: ='VUI Soporte y Regulación '!F18 -> 0
D9: Media | E9: 7.5 | F9: ='VUI Soporte y Regulación '!F19 -> 0
D10: Baja | E10: 2 | F10: ='VUI Soporte y Regulación '!F20 -> 0
A11: Pino y Ciprés Borde | B11: 29 | C11: =(B8*0.001*86400*365)/100 -> 9145.44 | D11: Alta | E11: 10 | F11: ='VUI Soporte y Regulación '!F21 -> 0
D12: Media | E12: 7.5 | F12: ='VUI Soporte y Regulación '!F22 -> 0
A13: Bosques natural /arbustales | B13: 34 | C13: =(B13*0.001*86400*365)/100 -> 10722.24 | D13: Alta | E13: 10 | F13: ='VUI Soporte y Regulación '!F23 -> 4.175346
D14: Media | E14: 7.5 | F14: ='VUI Soporte y Regulación '!F24 -> 0
D15: Baja | E15: 2 | F15: ='VUI Soporte y Regulación '!F25 -> 0
A16: Arbustales borde | B16: 34 | C16: =C13 -> 10722.24 | D16: Alta | E16: 10 | F16: ='VUI Soporte y Regulación '!F26 -> 4.01
D17: Media | E17: 7.5 | F17: ='VUI Soporte y Regulación '!F27 -> 0
A18: Páramo/herbazales | B18: 39 | C18: =(B18*0.001*86400*365)/100 -> 12299.04 | D18: Alta | E18: 5 | F18: ='VUI Soporte y Regulación '!F28 -> 1.666172
A19: Páramo/herbazales borde | B19: 39 | C19: =(B19*0.001*86400*365)/100 -> 12299.04 | D19: Alta | E19: 5 | F19: ='VUI Soporte y Regulación '!F29 -> 1.12
A20: Pastos | B20: 7.6 | C20: =(B20*0.001*86400*365)/100 -> 2396.736 | D20: Alta | E20: 2 | F20: ='VUI Soporte y Regulación '!F30 -> 1.639508
A21: Pastos Borde | B21: 7.6 | C21: =(B21*0.001*86400*365)/100 -> 2396.736 | D21: Alta | E21: 2 | F21: ='VUI Soporte y Regulación '!F31 -> 1.2
C23: Horizonte de tiempo
A24: Cobertura | B24: Nivel de afectación | C24: 0 | D24: 1 | E24: 2 | F24: 3 | G24: 4 | H24: 5 | I24: 6 | J24: 7 | K24: 8 | L24: 9 | M24: VPN DEL VALOR REGULACIÓN
A25: Eucalipto y latifoliadas | B25: Alta | C25: =ROUND(F3*$G$3*C3,0) -> 0 | D25: =C25 -> 0 | E25: 0 | F25: 0 | G25: 0 | H25: 0 | I25: 0 | J25: 0 | K25: 0 | L25: 0 | M25: =NPV(8.5%,D25:L25)+C25 -> 0
B26: Media | C26: =ROUND(F4*$G$3*C3,0) -> 0 | D26: 0 | E26: 0 | F26: 0 | G26: 0 | H26: 0 | I26: 0 | J26: 0 | M26: =NPV(8.5%,D26:J26)+C26 -> 0
B27: Baja | C27: =ROUND(F5*$G$3*C3,0) -> 28179 | D27: =C27 -> 28179 | M27: =NPV(8.5%,D27)+C27 -> 54150.42857
A28: Eucalipto y latifoliadas Borde | B28: Alta | C28: =ROUND(F6*$G$3*C6,0) -> 0 | D28: =C28 -> 0 | E28: =D28 -> 0 | F28: 0 | G28: 0 | H28: 0 | I28: 0 | J28: =I28 -> 0 | K28: =J28 -> 0 | L28: =K28 -> 0 | M28: =NPV(8.5%,D28:L28)+C28 -> 0
B29: Media | C29: =ROUND(F7*$G$3*C6,0) -> 0 | D29: =C29 -> 0 | E29: 0 | F29: 0 | G29: 0 | H29: 0 | I29: 0 | J29: 0 | M29: =NPV(8.5%,D29:J29)+C29 -> 0
A30: Pino y Ciprés | B30: Alta | C30: =ROUND(F8*$G$3*C8,0) -> 0 | D30: =C30 -> 0 | E30: 0 | F30: 0 | G30: 0 | H30: 0 | I30: 0 | J30: 0 | K30: 0 | L30: 0 | M30: =NPV(8.5%,D30:L30)+C30 -> 0
B31: Media | C31: =ROUND(F9*$G$3*C8,0) -> 0 | D31: 0 | E31: 0 | F31: 0 | G31: 0 | H31: 0 | I31: 0 | J31: 0 | M31: =NPV(8.5%,D31:J31)+C31 -> 0
B32: Baja | C32: =ROUND(F10*$G$3*C8,0) -> 0 | D32: =C32 -> 0 | M32: =NPV(8.5%,D32)+C32 -> 0
A33: Pino y Ciprés Borde | B33: Alta | C33: =ROUND(F11*$G$3*C11,0) -> 0 | D33: =C33 -> 0 | E33: =D33 -> 0 | F33: 0 | G33: 0 | H33: 0 | I33: 0 | J33: 0 | K33: 0 | L33: 0 | M33: =NPV(8.5%,D33:L33)+C33 -> 0
B34: Media | C34: =ROUND(F12*$G$3*C11,0) -> 0 | D34: =C34 -> 0 | E34: 0 | F34: 0 | G34: 0 | H34: 0 | I34: 0 | J34: 0 | M34: =NPV(8.5%,D34:J34)+C34 -> 0
A35: Bosques natural /arbustales | B35: Alta | C35: =ROUND(F13*$G$3*C13,0) -> 206609221 | D35: =C35 -> 206609221 | E35: 206609221 | F35: 206609221 | G35: 206609221 | H35: 206609221 | I35: 206609221 | J35: 206609221 | K35: 206609221 | L35: 206609221 | M35: =NPV(8.5%,D35:L35)+C35 -> 1470863987
B36: Media | C36: =ROUND(F14*$G$3*C13,0) -> 0 | D36: =C36 -> 0 | E36: 0 | F36: 0 | G36: 0 | H36: 0 | I36: 0 | J36: 0 | M36: =NPV(8.5%,D36:J36)+C36 -> 0
B37: Baja | C37: =ROUND(F15*$G$3*C13,0) -> 0 | D37: 0 | M37: =NPV(8.5%,D37)+C37 -> 0
A38: Arbustales borde | B38: Alta | C38: =ROUND(F16*$G$3*C16,0) -> 198427382 | D38: 198427382 | E38: =D38 -> 198427382 | F38: 198427382 | G38: 198427382 | H38: 198427382 | I38: 198427382 | J38: 198427382 | K38: 198427382 | L38: 198427382 | M38: =NPV(8.5%,D38:L38)+C38 -> 1412616963
B39: Media | C39: =ROUND(F17*$G$3*C16,0) -> 0 | D39: 0 | E39: =D39 -> 0 | F39: 0 | G39: 0 | H39: 0 | I39: 0 | J39: 0 | M39: =NPV(8.5%,D39:J39)+C39 -> 0
A40: Páramo/herbazales | B40: Alta | C40: =ROUND(F18*$G$3*C19,0) -> 94572039 | D40: 94572039 | E40: =D40 -> 94572039 | F40: 94572039 | G40: 94572039 | M40: =NPV(8.5%,D40:G40)+C40 -> 404351893.7
A41: Páramo/herbazales borde | B41: Alta | C41: =ROUND(F19*$G$3*C19,0) -> 63571278 | D41: 63571278 | E41: 63571278 | F41: 63571278 | G41: 63571278 | M41: =NPV(8.5%,D41:G41)+C41 -> 271805143.6
A42: Pastos | B42: Alta | C42: =ROUND(F20*$G$3*C20,0) -> 18134494 | D42: 18134494 | M42: =NPV(8.5%,D42)+C42 -> 34848313.35
A43: Pastos borde | B43: Alta | C43: =ROUND(F21*$G$3*C21,0) -> 13273124 | D43: 13273124 | M43: =NPV(8.5%,D43)+C43 -> 25506418.01
A44: Total VPN por servicio ecosistémico de regulación | M44: =SUM(M25:M43) -> 3620046869

Sheet VUI-Salud
A1: SECRETARIA DISTRITAL DE AMBIENTE SDA
A2: METODOLOGÍA DE VALORACIÓN ECONÓMICA Y AMBIENTAL DE DAÑOS OCASIONADOS POR INCENDIOS FORESTALES PARA LA RESTAURACIÓN
A3: VALOR DE USO INDIRECTO-SALUD
A5: VALOR DE USO INDIRECTO SALUD | C5: =E27+L26 -> 0
A7: SMMLV
A9: Costos de atención | I9: Costos de atención IRA | L9: SMMLV | M9: Precio
A10: Tipo de atención | D10: Cantidad de personas | E10: SMDLV $ | F10: Costo en SMDLV $ | G10: Costo | I10: Consulta de urgencias | L10: 1.97 | M10: =$E$22*L10 -> 0
A11: Valoración inicial intrahospitalaria, por el médico general tratante, del paciente ingresado para tratamiento no quirúrgico u obstétrico | E11: 1.91 | F11: =ROUND(D11*(($C$7/30)*E11),0) -> 0 | G11: =D11*F11 -> 0 | I11: Exámenes
A12: Consulta de urgencias | E12: 1.97 | F12: =ROUND(D12*(($C$7/30)*E12),0) -> 0 | G12: =D12*F12 -> 0 | I12: Gases arteriales | L12: 1.86 | M12: =$E$22*L12 -> 0
A13: Sutura | E13: 0.56 | F13: 0 | G13: =D13*F13 -> 0 | I13: Mecánica respiratoria, pletismógrafo inductiva tórax y abdomen, fuerza y resistencia de músculo respiratorio | L13: 5.08 | M13: =$E$22*L13 -> 0
A14: Materiales de sutura y curación, medicamentos y soluciones, oxígeno, agentes y gases anestésicos | E14: 2.31 | F14: 0 | G14: =D14*F14 -> 0 | I14: Gammagrafía Pulmonar, Perfusión y ventilación | L14: 19.21 | M14: =$E$22*L14 -> 0
A15: cuidado intermedio quemaduras | E15: 26.64 | F15: =ROUND(D15*(($C$7/30)*E15),0) -> 0 | G15: =D15*F15 -> 0 | I15: Espirómetro simple más volumen respiratorio y capacidad pulmonar total | L15: 6.06 | M15: =$E$22*L15 -> 0
A16: Total costos de atención | G16: =ROUND(SUM(G11:G15),0) -> 0 | I16: Hospitalización
I17: Habitación unipersonal (5dias) | L17: 31.25 | M17: =$E$22*L17 -> 0
I18: Terapia
I19: Inhalo terapia, sesión (nebulizador ultrasónico o presión positiva intermitente) | L19: 11.55 | M19: =$E$22*L19 -> 0
B20: Costos directos de salud | I20: Total | L20: =L10+L12+L13+L14+L15+L17+L19 -> 76.98 | M20: =ROUND(SUM(M10:M19),0) -> 0
B21: Costos por servicio de Ambulancia (1.23 SMMLV). | E21: =(C7*1.23)*D12 -> 0
B22: SMDLV | E22: =C7/30 -> 0 | I22: Costos indirectos de salud $
B23: Costos de atención | E23: =G16 -> 0 | I23: Población potencialmente afectable en un rango dañino para grupos sensibles (Rango 38-55 µg/m3)
B24: Tiempo de incapacidad (días) | I24: Población potencialmente afectable en un rango dañino para la salud (Rango 56-150 µg/m3)
B25: Población incapacitada | I25: Costos de atención IRA | L25: =M20 -> 0
B26: Costo de oportunidad del tiempo | E26: =E22*E25*E24 -> 0 | I26: Total costos indirectos | L26: =(L23+L24)*L25 -> 0
B27: Total costos directos | E27: =ROUND((E21+E23)+(E24*E25*E26),0) -> 0

Sheet Población VUI salud
B1: Rango 38-55 µg/m3 | H1: Rango 56-150 µg/m3
B2: LOCALIDADES | C2: ÁREA AFECTADA (ha) | D2: DENSIDAD POBLACIONAL (INDIV/ha) | E2: POBLACIÓN POTENCIALMENTE AFECTABLE ESTIMADA | H2: LOCALIDADES | I2: ÁREA AFECTADA (ha) | J2: DENSIDAD POBLACIONAL (INDIV/ha) | K2: POBLACIÓN POTENCIALMENTE AFECTABLE ESTIMADA
B3: USAQUÉN | E3: =ROUND(C3*D3,0) -> 0 | H3: USAQUÉN | K3: =ROUND(I3*J3,0) -> 0
B4: CHAPINERO | E4: =ROUND(C4*D4,0) -> 0 | H4: CHAPINERO | K4: =ROUND(I4*J4,0) -> 0
B5: SANTA FE | E5: 0 | H5: SANTA FE | K5: 0
B6: SAN CRISTÓBAL | E6: 0 | H6: SAN CRISTÓBAL | K6: 0
B7: USME | E7: 0 | H7: USME | K7: 0
B8: TUNJUELITO | E8: 0 | H8: TUNJUELITO | K8: 0
B9: BOSA | E9: 0 | H9: BOSA | K9: 0
B10: KENNEDY | E10: 0 | H10: KENNEDY | K10: 0
B11: FONTIBÓN | E11: 0 | H11: FONTIBÓN | K11: 0
B12: ENGATIVÁ | E12: 0 | H12: ENGATIVÁ | K12: 0
B13: SUBA | E13: 0 | H13: SUBA | K13: 0
B14: BARRIOS UNIDOS | E14: 0 | H14: BARRIOS UNIDOS | K14: 0
B15: TEUSAQUILLO | E15: 0 | H15: TEUSAQUILLO | K15: 0
B16: LOS MÁRTIRES | E16: 0 | H16: LOS MÁRTIRES | K16: 0
B17: ANTONIO NARIÑO | E17: 0 | H17: ANTONIO NARIÑO | K17: 0
B18: PUENTE ARANDA | E18: 0 | H18: PUENTE ARANDA | K18: 0
B19: LA CANDELARIA | E19: 0 | H19: LA CANDELARIA | K19: 0
B20: RAFAEL URIBE URIBE | E20: 0 | H20: RAFAEL URIBE URIBE | K20: 0
B21: CIUDAD BOLÍVAR | E21: 0 | H21: CIUDAD BOLÍVAR | K21: 0
B22: SUMAPAZ | E22: 0 | H22: SUMAPAZ | K22: 0
B23: Total población | E23: =ROUND(SUM(E3:F22),0) -> 0 | H23: Total de población potencialmente afectable | K23: =ROUND(SUM(K3:K21),0) -> 0
B24: Morbilidad por enfermedad respiratoria -Bogotá % | H24: Morbilidad por enfermedad respiratoria -Bogotá % | K24: =E24 -> 0
B25: Resultado morbilidad por enfermedad respiratoria | E25: =ROUND(E23*E24,0) -> 0 | H25: Resultado morbilidad por enfermedad respiratoria | K25: =ROUND(K23*K24,0) -> 0
B26: Población sensible | E26: < 4 años | F26: >60 años | H26: Población estimada como afectada 24% (PM 2,5) | K26: =ROUND(K25*0.24,0) -> 0
B27: Porcentaje de población sensible < 4 años y >60 años
B28: Población atendida por enfermedad respiratoria 33% y 9% | E28: =ROUND(E25*E27,0) -> 0 | F28: =ROUND(E25*F27,0) -> 0
B29: Población estimada como afectada 13% (PM 2,5) | E29: =ROUND(E28*0.13,0) -> 0 | F29: =ROUND(F28*0.13,0) -> 0
B30: TOTAL POBLACIÓN ESTIMADA COMO AFECTADA (PM2,5) | F30: =ROUND(SUM(E29:F29),0) -> 0

Sheet VNU-Coberturas
A1: SECRETARIA DISTRITAL DE AMBIENTE SDA
A2: METODOLOGÍA DE VALORACIÓN ECONÓMICA Y AMBIENTAL DE DAÑOS OCASIONADOS POR INCENDIOS FORESTALES PARA LA RESTAURACIÓN
A3: VALOR DE EXISTENCIA DE LA COBERTURA
A5: Valor de existencia de las coberturas | B5: =ROUND(B33+J47+M36,0) -> 14113242747
A6: SMMLV | B6: 1300000
D9: VALOR ECONÓMICO DE COSTOS DE REPOSICIÓN | L9: VALOR ECONÓMICO DE COSTOS INCURRIDOS POR CONSERVACIÓN
A10: VALOR ECONÓMICO DE COSTOS POR EXTINCIÓN | D10: COBERTURA | E10: Estados de desarrollo | F10: AFECTACIÓN | G10: ÁREA ha | H10: IVP/ha | I10: SMMLV | J10: IMPORTANCIA DEL ARBOLADO | M10: Predios
A11: Entidad | B11: Costos | D11: Arbustal abierto mesófilo | E11: Fustal | F11: ALTA | G11: 1.508102 | I11: =B6 -> 1300000 | J11: =ROUND($G$11*H11*I11,0) -> 0 | L11: Nombre del predio (chip catastral) | M11: AAA0143MDWW | N11: AAA0172ONFZ | O11: AAA0179HNLF | P11: AAA0021SECN | Q11: AAA0011OPMR | R11: AAA0020OSYX | S11: AAA0008ZLHY | T11: AAA0172ONBS | U11: AAA0172ONCN | V11: AAA0172ONDE | W11: AAA0172ONEP
A12: Cruz roja | B12: 0 | E12: Latizal | H12: 973.8228571 | I12: =0.4379*$B$6 -> 569270 | J12: =ROUND($G$11*H12*I12,0) -> 836043697 | L12: Puntaje | M12: 125 | N12: 125 | O12: 125 | P12: 125 | Q12: 175 | R12: 125 | S12: 125 | T12: 125 | U12: 125 | V12: 125 | W12: 125
A13: Defensa civil | B13: 0 | E13: Brinzal | H13: 1700 | I13: =0.4379*$B$6 -> 569270 | J13: 1459479283 | L13: Estado de conservación | M13: Preservación | N13: Preservación | O13: Preservación | P13: Preservación | Q13: Preservación | R13: Preservación | S13: Preservación | T13: Preservación | U13: Preservación | V13: Preservación | W13: Preservación
A14: UAECOB | B14: 19620104.07 | E14: Fustal Borde | G14: 0.83 | I14: =B6 -> 1300000 | J14: =ROUND($G$14*H14*I14,0) -> 0
A15: IDIGER | B15: 9792209 | E15: Latizal Borde | H15: 450.8285714 | I15: =0.4379*$B$6 -> 569270 | J15: =ROUND($G$14*H15*I15,0) -> 213013840
A16: TOTAL | B16: =ROUND(SUM(B12:B15),0) -> 29412313 | E16: Brinzal Borde | I16: =0.4379*$B$6 -> 569270 | J16: =ROUND($G$14*H16*I16,0) -> 0
D17: Arbustal denso mesófilo | E17: Fustal | F17: ALTA | G17: 2.607741 | I17: =B6 -> 1300000 | J17: =ROUND($G$17*H17*I17,0) -> 0
E18: Latizal | H18: 1598.982857 | I18: =0.4379*$B$6 -> 569270 | J18: =ROUND($G$17*H18*I18,0) -> 2373703993 | M18: Predios
A19: OTRAS ENTIDADES | E19: Brinzal | H19: 2200 | I19: =0.4379*$B$6 -> 569270 | J19: =ROUND($G$17*H19*I19,0) -> 3265919182 | M19: =M11 -> AAA0143MDWW | N19: AAA0172ONFZ | O19: AAA0179HNLF | P19: AAA0021SECN | Q19: AAA0011OPMR | R19: AAA0020OSYX | S19: AAA0008ZLHY | T19: AAA0172ONBS | U19: AAA0172ONCN | V19: AAA0172ONDE | W19: AAA0172ONEP
A20: Entidad | B20: Costos | E20: Fustal Borde | G20: 2.85 | I20: =B6 -> 1300000 | J20: =ROUND($G$20*H20*I20,0) -> 0 | L20: Área del predio (ha) | M20: 3.79 | N20: 1.56 | O20: 1.02 | P20: 3.13 | Q20: 35.45 | R20: 1.97 | S20: 4.7 | T20: 0.49 | U20: 0.51 | V20: 0.59 | W20: 0.44
E21: Latizal Borde | H21: 941.3114286 | I21: =0.4379*$B$6 -> 569270 | J21: =ROUND($G$20*H21*I21,0) -> 1527202017 | L21: Área afectada | M21: 0.41 | N21: 1.18 | O21: 0.18 | P21: 1.52 | Q21: 1.49 | R21: 1.04 | S21: 0.64 | T21: 0.06 | U21: 0.14 | V21: 0.32 | W21: 0.13
E22: Brinzal Borde | I22: =0.4379*$B$6 -> 569270 | J22: =ROUND($G$20*H22*I22,0) -> 0 | L22: VpAv /ha | M22: =12.31*$B$6 -> 16003000 | N22: =12.31*$B$6 -> 16003000 | O22: 16003000 | P22: 16003000 | Q22: 16003000 | R22: 16003000 | S22: 16003000 | T22: 16003000 | U22: 16003000 | V22: 16003000 | W22: 16003000
D23: Herbazal abierto rocoso | E23: Fustal | F23: ALTA | G23: 1.335127 | I23: =B6 -> 1300000 | J23: =ROUND($G$23*H23*I23,0) -> 0 | L23: Valor avalúo | M23: =M20*M22 -> 60651370 | N23: =N20*N22 -> 24964680 | O23: =O20*O22 -> 16323060 | P23: 50089390 | Q23: 567306350 | R23: =R20*R22 -> 31525910 | S23: 75214100 | T23: 7841470 | U23: 8161530 | V23: =V20*V22 -> 9441770 | W23: =W20*W22 -> 7041320
E24: Latizal | I24: =0.4379*$B$6 -> 569270 | J24: =ROUND($G$23*H24*I24,0) -> 0 | L24: Equivalencia en SMMLV | M24: =M23/$B$6 -> 46.6549 | N24: 19.2036 | O24: 12.5562 | P24: 38.5303 | Q24: 436.3895 | R24: 24.2507 | S24: 57.857 | T24: 6.0319 | U24: 6.2781 | V24: =V23/$B$6 -> 7.2629 | W24: =W23/$B$6 -> 5.4164
E25: Brinzal | H25: 1000 | I25: =0.4379*$B$6 -> 569270 | J25: =ROUND($G$23*H25*I25,0) -> 760047747 | L25: Valor de cálculo impuesto | M25: =IF(M24 <= 135,"0,004","0,0065") -> 0,004 | N25: =IF(N24 <= 135,"0,004","0,0065") -> 0,004 | O25: =IF(O24 <= 135,"0,004","0,0065") -> 0,004 | P25: =IF(P24 <= 135,"0,004","0,0065") -> 0,004 | Q25: =IF(Q24 <= 135,"0,004","0,0065") -> 0,0065 | R25: =IF(R24 <= 135,"0,004","0,0065") -> 0,004 | S25: 0,004 | T25: 0,004 | U25: 0,004 | V25: =IF(V24 <= 135,"0,004","0,0065") -> 0,004 | W25: =IF(W24 <= 135,"0,004","0,0065") -> 0,004
E26: Fustal Borde | G26: 1.05 | I26: =B6 -> 1300000 | J26: =ROUND($G$26*H26*I26,0) -> 0 | L26: Impuesto predio | M26: =M25*M23 -> 242605.48 | N26: =N25*N23 -> 99858.72 | O26: 65292.24 | P26: 200357.56 | Q26: 3687491.275 | R26: 126103.64 | S26: 300856.4 | T26: 31365.88 | U26: 32646.12 | V26: 37767.08 | W26: =W25*W23 -> 28165.28
E27: Latizal Borde | I27: =0.4379*$B$6 -> 569270 | J27: =ROUND($G$26*H27*I27,0) -> 0 | L27: Impuesto área afectada | M27: =(M26/M20)*M21 -> 26244.92 | N27: =(N26/N20)*N21 -> 75534.16 | O27: 11522.16 | P27: 97298.24 | Q27: 154989.055 | R27: 66572.48 | S27: 40967.68 | T27: 3840.72 | U27: =(U26/U20)*U21 -> 8961.68 | V27: =(V26/V20)*V21 -> 20483.84 | W27: =(W26/W20)*W21 -> 8321.56
E28: Brinzal Borde | H28: 1400 | I28: =0.4379*$B$6 -> 569270 | J28: 836826900 | L28: Valor de calculo incentivo | M28: =IF(M12 >74,"0,002",IF(M12>49,"0,005",IF(M12 >19,"0,01",IF(M12<=19,"0,016","NA")))) -> 0,002 | N28: 0,002 | O28: 0,002 | P28: 0,002 | Q28: 0,002 | R28: 0,002 | S28: 0,002 | T28: 0,002 | U28: 0,002 | V28: =IF(V12 >74,"0,002",IF(V12>49,"0,005",IF(V12 >19,"0,01",IF(V12<=19,"0,016","NA")))) -> 0,002 | W28: =IF(W12 >74,"0,002",IF(W12>49,"0,005",IF(W12 >19,"0,01",IF(W12<=19,"0,016","NA")))) -> 0,002
D29: Herbazal denso de tierra firme con arbustos | E29: Fustal | F29: ALTA | G29: 0.331045 | I29: =B6 -> 1300000 | J29: =ROUND($G$29*H29*I29,0) -> 0 | L29: Valor a pagar con el incentivo | M29: =M28*M27 -> 52.48984 | N29: =N28*N27 -> 151.06832 | O29: 23.04432 | P29: 194.59648 | Q29: 309.97811 | R29: 133.14496 | S29: 81.93536 | T29: 7.68144 | U29: 17.92336 | V29: 40.96768 | W29: =W28*W27 -> 16.64312
A30: Total | B30: =ROUND(SUM(B20:B29),0) -> 0 | E30: Latizal | I30: =0.4379*$B$6 -> 569270 | J30: =ROUND($G$29*H30*I30,0) -> 0 | L30: Costo social | M30: =(M27-M29)/M21 -> 63883.976 | N30: =(N27-N29)/N21 -> 63883.976 | O30: 63883.976 | P30: 63883.976 | Q30: 103811.461 | R30: 63883.976 | S30: 63883.976 | T30: 63883.976 | U30: 63883.976 | V30: 63883.976 | W30: =(W27-W29)/W21 -> 63883.976
E31: Brinzal | H31: 2900 | I31: =0.4379*$B$6 -> 569270 | J31: =ROUND($G$29*H31*I31,0) -> 546516563 | L31: TOTAL VALOR DE CONSERVACIÓN | Y31: =SUM(M30:Y30) -> 742651.221
E32: Fustal Borde | G32: 0.29 | H32: 2000 | I32: =B6 -> 1300000 | J32: =ROUND($G$32*H32*I32,0) -> 754000000
A33: TOTAL ENTIDADES | B33: =ROUND(SUM(B16+B30),0) -> 29412313 | E33: Latizal Borde | I33: =0.4379*$B$6 -> 569270 | J33: =ROUND($G$32*H33*I33,0) -> 0
E34: Brinzal Borde | I34: =0.4379*$B$6 -> 569270 | J34: =ROUND($G$32*H34*I34,0) -> 0
D35: Pastos enmalezados | E35: Fustal | F35: ALTA | G35: 1.266248 | I35: =B18 -> 0 | J35: =ROUND($G$29*H35*I35,0) -> 0
E36: latizal | I36: =0.4379*$B$6 -> 569270 | J36: =ROUND($G$29*H36*I36,0) -> 0 | L36: Total costos incurridos en conservación | M36: =ROUND(SUM(M30:O30),0) -> 191652
E37: brinzal | H37: 2200 | I37: =0.4379*$B$6 -> 569270 | J37: =ROUND($G$29*H37*I37,0) -> 414598772
E38: Fustal Borde | G38: 0.93 | I38: =B18 -> 0 | J38: =ROUND($G$32*H38*I38,0) -> 0
E39: Latizal Borde | I39: =0.4379*$B$6 -> 569270 | J39: =ROUND($G$32*H39*I39,0) -> 0
E40: Brinzal Borde | H40: 2500 | I40: =0.4379*$B$6 -> 569270 | J40: =ROUND($G$32*H40*I40,0) -> 412720750
D41: Áreas cubiertas por cesped arbolado | E41: Fustal | F41: ALTA | G41: 0.037326 | I41: =B24 -> 0 | J41: =ROUND($G$29*H41*I41,0) -> 0
E42: latizal | I42: =0.4379*$B$6 -> 569270 | J42: =ROUND($G$29*H42*I42,0) -> 0
E43: brinzal | H43: 1700 | I43: =0.4379*$B$6 -> 569270 | J43: =ROUND($G$29*H43*I43,0) -> 320371778
E44: Fustal Borde | G44: 0.23 | I44: =B24 -> 0 | J44: =ROUND($G$32*H44*I44,0) -> 0
E45: Latizal Borde | I45: =0.4379*$B$6 -> 569270 | J45: =ROUND($G$32*H45*I45,0) -> 0
E46: Brinzal Borde | H46: 2200 | I46: =0.4379*$B$6 -> 569270 | J46: =ROUND($G$32*H46*I46,0) -> 363194260
D47: TOTAL | J47: =ROUND(SUM(J11:J46),0) -> 14083638782

Sheet Flujo E.Conservación
C1: Predios
B2: Cobertura | C2: Afectación | D2: Tiempo de recuperación | E2: ='VNU-Coberturas'!M11 -> AAA0143MDWW | F2: ='VNU-Coberturas'!N11 -> AAA0172ONFZ | G2: ='VNU-Coberturas'!O11 -> AAA0179HNLF | H2: ='VNU-Coberturas'!P11 -> AAA0021SECN | I2: ='VNU-Coberturas'!Q11 -> AAA0011OPMR | J2: ='VNU-Coberturas'!R11 -> AAA0020OSYX | K2: ='VNU-Coberturas'!S11 -> AAA0008ZLHY | L2: ='VNU-Coberturas'!T11 -> AAA0172ONBS | M2: ='VNU-Coberturas'!U11 -> AAA0172ONCN | N2: ='VNU-Coberturas'!V11 -> AAA0172ONDE | O2: ='VNU-Coberturas'!W11 -> AAA0172ONEP
A3: Área | B3: Coberturas lignificadas | C3: Alta | D3: 10 | E3: 0.39 | F3: 0.2 | G3: 0.01516 | H3: 1.14 | I3: 1.12 | J3: 0.95 | K3: 0.004647 | L3: 0.060466 | M3: 0.09 | N3: 0.13 | O3: 0.078222
C4: Media | D4: 7.5
C5: Baja | D5: 2 | E5: 4e-06 | H5: 0.000918
B6: Herbazales | C6: Alta | D6: 5 | E6: 0.02 | F6: 0.72 | G6: 0.12687 | H6: 0.34 | I6: 0.234103 | J6: 0.088935 | K6: 0.058557 | M6: 0.030127 | N6: 0.03 | O6: 0.011744
B7: Pastos | C7: Alta | D7: 2 | F7: 0.26 | G7: 0.038836 | H7: 0.040865 | I7: 0.16 | K7: 0.581424 | M7: 0.020947 | N7: 0.163823 | O7: 0.039924
B8: Costo social por hectárea | E8: ='VNU-Coberturas'!M30 -> 63883.976 | F8: ='VNU-Coberturas'!N30 -> 63883.976 | G8: ='VNU-Coberturas'!O30 -> 63883.976 | H8: ='VNU-Coberturas'!P30 -> 63883.976 | I8: ='VNU-Coberturas'!Q30 -> 103811.461 | J8: ='VNU-Coberturas'!R30 -> 63883.976 | K8: ='VNU-Coberturas'!S30 -> 63883.976 | L8: ='VNU-Coberturas'!T30 -> 63883.976 | M8: ='VNU-Coberturas'!U30 -> 63883.976 | N8: ='VNU-Coberturas'!V30 -> 63883.976 | O8: ='VNU-Coberturas'!W30 -> 63883.976
C12: Predio | D12: Afectación | E12: 0 | F12: 1 | G12: 2 | H12: 3 | I12: 4 | J12: 5 | K12: 6 | L12: 7 | M12: 8 | N12: 9 | O12: VPN DEL VALOR DE EXISTENCIA
C13: =E2 -> AAA0143MDWW | D13: Alta | E13: =ROUND(E3*$E$8,0) -> 24915 | F13: =ROUND(E3*$E$8,0) -> 24915 | G13: =E13 -> 24915 | H13: =F13 -> 24915 | I13: 24915 | J13: 24915 | K13: 24915 | L13: 24915 | M13: 24915 | N13: 24915 | O13: =NPV(8.5%,F13:N13)+E13 -> 177371.4458
D14: Media | E14: =ROUND(E4*$E$8,0) -> 0 | F14: =ROUND(E4*$E$8,0) -> 0 | G14: =ROUND(E4*$E$8,0) -> 0 | H14: =G14 -> 0 | I14: =H14 -> 0 | J14: =I14 -> 0 | K14: =J14 -> 0 | L14: =K14 -> 0 | M14: 0 | N14: 0 | O14: =NPV(8.5%,F14:N14)+E14 -> 0
D15: Baja | E15: =ROUND(E5*$E$8,0) -> 0 | F15: =E15 -> 0 | G15: 0 | H15: 0 | I15: 0 | J15: 0 | K15: 0 | L15: 0 | M15: 0 | N15: 0 | O15: =NPV(8.5%,F15:N15)+E15 -> 0
D16: Herbazal | E16: =ROUND(E6*$E$8,0) -> 1278 | F16: =E16 -> 1278 | G16: =F16 -> 1278 | H16: =G16 -> 1278 | I16: 1278 | J16: 0 | K16: 0 | L16: 0 | M16: 0 | N16: 0 | O16: =NPV(8.5%,F16:N16)+E16 -> 5464.212526
D17: Pastos | E17: =ROUND(E7*$E$8,0) -> 0 | F17: =E17 -> 0 | G17: 0 | H17: 0 | I17: 0 | J17: 0 | K17: 0 | L17: 0 | M17: 0 | N17: =M17 -> 0 | O17: 0
C18: =F2 -> AAA0172ONFZ | D18: Alta | E18: =ROUND(F3*F8,0) -> 12777 | F18: =E18 -> 12777 | G18: =F18 -> 12777 | H18: 12777 | I18: 12777 | J18: 12777 | K18: 12777 | L18: 12777 | M18: 12777 | N18: =M18 -> 12777 | O18: 90960.26339
D19: Media | E19: =F4*$F$8 -> 0 | F19: =E19 -> 0 | G19: =F19 -> 0 | H19: 0 | I19: 0 | J19: 0 | K19: 0 | L19: =K19 -> 0 | M19: 0 | N19: 0 | O19: 0
D20: Baja | E20: =F5*$F$8 -> 0 | F20: =E20 -> 0 | G20: 0 | H20: 0 | I20: 0 | J20: 0 | K20: 0 | L20: 0 | M20: 0 | N20: 0 | O20: 0
D21: Herbazal | E21: =ROUND(F6*$F$8,0) -> 45996 | F21: 45996 | G21: =F21 -> 45996 | H21: =G21 -> 45996 | I21: =H21 -> 45996 | J21: 0 | K21: 0 | L21: 0 | M21: 0 | N21: 0 | O21: 196660.3438
D22: Pastos | E22: =ROUND(F7*$F$8,0) -> 16610 | F22: 16610 | G22: 0 | H22: 0 | I22: 0 | J22: 0 | K22: 0 | L22: 0 | M22: 0 | N22: 0 | O22: 31918.75576
C23: =G2 -> AAA0179HNLF | D23: Alta | E23: =ROUND(G3*$G$8,0) -> 968 | F23: 968 | G23: =F23 -> 968 | H23: 968 | I23: 968 | J23: 968 | K23: 968 | L23: 968 | M23: 968 | N23: 968 | O23: 6891.252639
D24: Media | E24: =ROUND(G4*$G$8,0) -> 0 | F24: 0 | G24: =F24 -> 0 | H24: 0 | I24: 0 | J24: 0 | K24: 0 | L24: 0 | M24: 0 | N24: 0 | O24: 0
D25: Baja | E25: =ROUND(G5*$G$8,0) -> 0 | F25: 0 | G25: 0 | H25: 0 | I25: 0 | J25: 0 | K25: 0 | L25: 0 | M25: 0 | N25: 0 | O25: 0
D26: Herbazal | E26: =ROUND(G6*$G$8,0) -> 8105 | F26: 8105 | G26: =F26 -> 8105 | H26: =G26 -> 8105 | I26: =H26 -> 8105 | J26: 0 | K26: 0 | L26: 0 | M26: 0 | N26: 0 | O26: 34653.71089
D27: Pastos | E27: =ROUND(G7*$G$8,0) -> 2481 | F27: 2481 | G27: 0 | H27: 0 | I27: 0 | J27: 0 | K27: 0 | L27: 0 | M27: 0 | N27: 0 | O27: 4767.635945
C28: =H2 -> AAA0021SECN | D28: Alta | E28: =ROUND(H3*$H$8,0) -> 72828 | F28: 72828 | G28: =F28 -> 72828 | H28: 72828 | I28: 72828 | J28: 72828 | K28: 72828 | L28: 72828 | M28: 72828 | N28: 72828 | O28: 518467.0942
D29: Media | E29: =ROUND(H4*$H$8,0) -> 0 | F29: 0 | G29: =F29 -> 0 | H29: 0 | I29: 0 | J29: 0 | K29: 0 | L29: 0 | M29: 0 | N29: 0 | O29: 0
D30: Baja | E30: =ROUND(H5*$H$8,0) -> 59 | F30: 59 | G30: 0 | H30: 0 | I30: 0 | J30: 0 | K30: 0 | L30: 0 | M30: 0 | N30: 0 | O30: 113.3778802
D31: Herbazal | E31: =ROUND(H6*$H$8,0) -> 21721 | F31: 21721 | G31: =ROUND(J6*$H$8,0) -> 5682 | H31: =G31 -> 5682 | I31: =ROUND(L6*$H$8,0) -> 0 | J31: 0 | K31: 0 | L31: 0 | M31: 0 | N31: 0 | O31: 51015.44359
D32: Pastos | E32: =ROUND(H7*$H$8,0) -> 2611 | F32: 2611 | G32: 0 | H32: 0 | I32: 0 | J32: 0 | K32: 0 | L32: 0 | M32: 0 | N32: 0 | O32: 5017.451613
C33: =I2 -> AAA0011OPMR | D33: Alta | E33: =ROUND(I3*$I$8,0) -> 116269 | F33: 116269 | G33: =F33 -> 116269 | H33: 116269 | I33: 116269 | J33: 116269 | K33: 116269 | L33: 116269 | M33: 116269 | N33: 116269 | O33: 827726.2945
D34: Media | E34: =ROUND(I4*$I$8,0) -> 0 | F34: 0 | G34: =F34 -> 0 | H34: 0 | I34: 0 | J34: 0 | K34: 0 | L34: 0 | O34: 0
D35: Baja | E35: =ROUND(I5*$I$8,0) -> 0 | F35: 0 | G35: 0 | H35: 0 | I35: 0 | J35: 0 | K35: 0 | L35: 0 | M35: 0 | N35: 0 | O35: 0
D36: Herbazal | E36: =ROUND(I6*$I$8,0) -> 24303 | F36: 24303 | G36: =F36 -> 24303 | H36: =G36 -> 24303 | I36: =H36 -> 24303 | J36: 0 | K36: 0 | L36: 0 | M36: 0 | N36: 0 | O36: 103909.8255
D37: Pastos | E37: =ROUND(I7*$I$8,0) -> 16610 | F37: 16610 | G37: 0 | H37: 0 | I37: 0 | J37: 0 | K37: 0 | L37: 0 | M37: 0 | N37: 0 | O37: 31918.75576
C38: =J2 -> AAA0020OSYX | D38: Alta | E38: =ROUND(J3*$J$8,0) -> 60690 | F38: 60690 | G38: =F38 -> 60690 | H38: 60690 | I38: 60690 | J38: 60690 | K38: 60690 | L38: 60690 | M38: 60690 | N38: 60690 | O38: 432055.9118
D39: Media | E39: =ROUND(J4*$J$8,0) -> 0 | F39: 0 | G39: =F39 -> 0 | H39: 0 | I39: 0 | J39: 0 | K39: 0 | L39: 0 | M39: 0 | N39: 0 | O39: 0
D40: Baja | E40: =ROUND(J5*$J$8,0) -> 0 | F40: 0 | G40: 0 | H40: 0 | I40: 0 | J40: 0 | K40: 0 | L40: 0 | M40: 0 | N40: 0 | O40: 0
D41: Herbazal | E41: =ROUND(J6*$J$8,0) -> 5682 | F41: 5682 | G41: =F41 -> 5682 | H41: =G41 -> 5682 | I41: =H41 -> 5682 | J41: 0 | K41: 0 | L41: 0 | M41: 0 | N41: 0 | O41: 24293.9402
D42: Pastos | E42: =ROUND(J7*$J$8,0) -> 0 | F42: 0 | G42: 0 | H42: 0 | I42: 0 | J42: 0 | K42: 0 | L42: 0 | M42: 0 | N42: 0 | O42: 0
C43: =K2 -> AAA0008ZLHY | D43: Alta | E43: =ROUND(K3*$K$8,0) -> 297 | F43: 297 | G43: =F43 -> 297 | H43: 297 | I43: 297 | J43: 297 | K43: 297 | L43: 297 | M43: 297 | N43: 297 | O43: 2114.361605
D44: Media | E44: =ROUND(K4*$K$8,0) -> 0 | F44: 0 | G44: =F44 -> 0 | H44: 0 | I44: 0 | J44: 0 | K44: 0 | L44: 0 | M44: 0 | N44: 0 | O44: 0
D45: Baja | E45: =ROUND(K5*$K$8,0) -> 0 | F45: 0 | G45: 0 | H45: 0 | I45: 0 | J45: 0 | K45: 0 | L45: 0 | M45: 0 | N45: 0 | O45: 0
D46: Herbazal | E46: =ROUND(K6*$K$8,0) -> 3741 | F46: 3741 | G46: =F46 -> 3741 | H46: =G46 -> 3741 | I46: =H46 -> 3741 | J46: 0 | K46: 0 | L46: 0 | M46: 0 | N46: 0 | O46: 15995.00709
D47: Pastos | E47: =ROUND(K7*$K$8,0) -> 37144 | F47: 37144 | G47: 0 | H47: 0 | I47: 0 | J47: 0 | K47: 0 | L47: 0 | M47: 0 | N47: 0 | O47: 71378.10138
C48: =L2 -> AAA0172ONBS | D48: Alta | E48: =ROUND(L3*$L$8,0) -> 3863 | F48: 3863 | G48: =F48 -> 3863 | H48: 3863 | I48: 3863 | J48: 3863 | K48: 3863 | L48: 3863 | M48: 3863 | N48: 3863 | O48: 27500.93899
D49: Media | E49: =ROUND(L4*$L$8,0) -> 0 | F49: =E49 -> 0 | G49: 0 | H49: 0 | I49: 0 | J49: 0 | K49: 0 | L49: 0 | M49: 0 | N49: 0 | O49: 0
D50: Baja | E50: =ROUND(L5*$L$8,0) -> 0 | F50: =E50 -> 0 | G50: 0 | H50: 0 | I50: 0 | J50: 0 | K50: 0 | L50: 0 | M50: 0 | N50: 0 | O50: 0
D51: Herbazal | E51: =ROUND(L6*$L$8,0) -> 0 | F51: =E51 -> 0 | G51: =F51 -> 0 | H51: =G51 -> 0 | I51: =H51 -> 0 | J51: 0 | K51: 0 | L51: 0 | M51: 0 | N51: 0 | O51: 0
D52: Pastos | E52: =ROUND(L7*$L$8,0) -> 0 | F52: =E52 -> 0 | G52: 0 | H52: 0 | I52: 0 | J52: 0 | K52: 0 | L52: 0 | M52: 0 | N52: 0 | O52: 0
C53: =M2 -> AAA0172ONCN | D53: Alta | E53: =ROUND(M3*$M$8,0) -> 5750 | F53: 5750 | G53: 5750 | H53: 5750 | I53: 5750 | J53: 5750 | K53: 5750 | L53: 5750 | M53: 5750 | N53: 5750 | O53: 40934.6102
D54: Media | E54: =ROUND(M4*$M$8,0) -> 0 | F54: 0 | G54: 0 | H54: 0 | I54: 0 | J54: 0 | K54: 0 | L54: 0 | M54: 0 | N54: 0 | O54: 0
D55: Baja | E55: =ROUND(M5*$M$8,0) -> 0 | F55: 0 | G55: 0 | H55: 0 | I55: 0 | O55: 0
D56: Herbazal | E56: =ROUND(M6*$M$8,0) -> 1925 | F56: 1925 | G56: 1925 | H56: 1925 | I56: 1925 | O56: 8230.523562
D57: Pastos | E57: =ROUND(M7*$M$8,0) -> 1338 | F57: 1338 | O57: 2571.179724
C58: =N2 -> AAA0172ONDE | D58: Alta | E58: =ROUND(N3*$N$8,0) -> 8305 | F58: 8305 | G58: 8305 | H58: 8305 | I58: 8305 | J58: 8305 | K58: 8305 | L58: 8305 | M58: 8305 | N58: 8305 | O58: 59123.81525
D59: Media | E59: =ROUND(N4*$N$8,0) -> 0 | F59: =E59 -> 0 | G59: 0 | H59: 0 | I59: 0 | J59: 0 | K59: 0 | L59: 0 | O59: 0
D60: Baja | E60: =ROUND(N5*$N$8,0) -> 0 | F60: =E60 -> 0 | O60: 0
D61: Herbazal | E61: =ROUND(N6*$N$8,0) -> 1917 | F61: 1917 | G61: =F61 -> 1917 | H61: =G61 -> 1917 | I61: =H61 -> 1917 | O61: 8196.318789
D62: Pastos | E62: =ROUND(N7*$N$8,0) -> 10466 | F62: 10466 | O62: 20112.08295
C63: =O2 -> AAA0172ONEP | D63: Alta | E63: =ROUND(O3*$O$8,0) -> 4997 | F63: 4997 | G63: =F63 -> 4997 | H63: 4997 | I63: 4997 | J63: 4997 | K63: 4997 | L63: 4997 | M63: 4997 | N63: 4997 | O63: 35573.95603
D64: Media | E64: =ROUND(O4*$O$8,0) -> 0 | F64: 0 | G64: =F64 -> 0 | H64: 0 | I64: 0 | J64: 0 | K64: 0 | L64: 0 | O64: 0
D65: Baja | E65: =ROUND(O5*$O$8,0) -> 0 | F65: 0 | O65: 0
D66: Herbazal | E66: =ROUND(O6*$O$8,0) -> 750 | F66: 750 | G66: =F66 -> 750 | H66: =G66 -> 750 | I66: =H66 -> 750 | O66: 3206.697492
D67: Pastos | E67: =ROUND(O7*$O$8,0) -> 2551 | F67: 2551 | O67: 4902.152074
C68: 0 | D68: Alta | E68: =ROUND(#REF!*#REF!,0) ->  | F68: =E68 -> 
D69: Media | E69: =ROUND(#REF!*#REF!,0) ->  | F69: =E69 -> 
D70: Baja | E70: =ROUND(#REF!*#REF!,0) -> 
D71: Herbazal | E71: =ROUND(#REF!*#REF!,0) ->  | F71: =E71 ->  | G71: =F71 ->  | H71: =G71 ->  | I71: =H71 -> 
D72: Pastos | E72: =ROUND(#REF!*#REF!,0) ->  | F72: =E72 -> 
C73: 0 | D73: Alta | E73: =ROUND(#REF!*#REF!,0) ->  | F73: =E73 ->  | O73: =NPV(8.5%,F73:N73)+E73 -> 
D74: Media | E74: =ROUND(#REF!*#REF!,0) ->  | F74: =E74 -> 
D75: Baja | E75: =ROUND(#REF!*#REF!,0) ->  | F75: =E75 -> 
D76: Herbazal | E76: =ROUND(#REF!*#REF!,0) ->  | F76: =E76 ->  | G76: =F76 ->  | H76: =G76 ->  | I76: =H76 -> 
D77: Pastos | E77: =ROUND(#REF!*#REF!,0) ->  | F77: =E77 ->  | O77: =NPV(8.5%,F77:N77)+E77 -> 

Sheet VET
A1: SECRETARIA DISTRITAL DE AMBIENTE SDA
A2: METODOLOGÍA DE VALORACIÓN ECONÓMICA Y AMBIENTAL DE DAÑOS OCASIONADOS POR INCENDIOS FORESTALES PARA LA RESTAURACIÓN
A3: APROXIMACIÓN AL VALOR ECONÓMICO TOTAL
D7: Aproximación al Valor Económico Total | G7: Costo
D8: Valor de uso directo de la madera | G8: ='VUD-Madera'!D5 -> 0
D9: Valor de uso directo de la infraestructura | G9: ='VUD-Infraestructura'!C4 -> 0
D10: Valor de uso directo de la recreación | G10: ='VUD-Recreación'!B5 -> 0
D11: Valor de uso directo del suelo | G11: ='VUD-Suelo Productivo'!C5 -> 0
D12: Valor de uso indirecto de sumidero de carbono | G12: ='VUI-Sumidero de carbono'!C5 -> 108770883
D13: Valor de uso indirecto de soporte y regulación | G13: ='VUI Soporte y Regulación '!B6 -> 3713719758
D14: Valor de uso indirecto de la calidad del aire por afectación a la salud | G14: ='VUI-Salud'!C5 -> 0
D15: Valor de existencia de las coberturas | G15: ='VNU-Coberturas'!B5 -> 14113242747
D16: TOTAL | G16: =SUM(G8:G15) -> 17935733388
